Workbook

Sheet Methode 1 - Analyse données
B2: METHODE N°1 - Calcul du TRS par l'analyse de données globales.
C4: Complétez uniquement les cases jaunes
B6: Données de production
B7: Durée de travail | C7: 8 | D7: heures | E7: =C7*60 -> 480 | F7: minutes au total
B8: Courtes pauses | C8: 1 | D8: pauses de | E8: 30 | F8: minutes chacunes = | G8: =C8*E8 -> 30 | H8: minutes au total
B9: Pause repas | C9: 1 | D9: pauses de | E9: 30 | F9: minutes chacunes = | G9: =C9*E9 -> 30 | H9: minutes au total
B10: Temps d'arrêt | C10: 30 | D10: minutes
B11: Taux de production idéal | C11: 2 | D11: PPM (pièces par minute)
B12: Nombre total de pièces | C12: 450 | D12: pièces
B13: Pièces rejetées | C13: 23 | D13: pièces
B15: Calculs intermédiaires | C15: Détails | H15: Résultats
B16: Temps de production planifié | C16: = (Durée de travail) - (Pauses) | H16: =E7-G8-G9 -> 420 | I16: minutes
B17: Temps d'exécution | C17: = (Temps de production prévu) - (Temps d'arrêts) | H17: =H16-C10 -> 390 | I17: minutes
B18: Temps net | C18: = (Temps utile) + (Nombre de pièces rejetées) x (Temps de cyle idéal) | H18: =H20+C13/C11 -> 225 | I18: minutes
B19: Pièces bonnes du 1er coup | C19: = (Nombre total de pièces) - (Pièces rejetées) | H19: =C12-C13 -> 427 | I19: pièces
B20: Temps utile | C20: = (Nombre de pièces bonnes du 1er coup) x (Temps de cycle idéal) | H20: =H19/C11 -> 213.5 | I20: minutes
B22: Composantes TRS | C22: Détails | H22: Votre TRS détaillés
B23: Disponibilité des équipements | C23: = (Temps d'exécution) / (Temps de production planifié) | H23: =H17/H16 -> 0.9285714286
B24: Performance opérationnelle | C24: = (Temps de cycle idéal × Nombre de pièces total) / (Temps d'exécution) | H24: =(C12/C11)/H17 -> 0.5769230769
B25: Qualité des produits | C25: = (Nombre de pièces bonnes du 1er coup) / (Nombre de pièces total) | H25: =H19/C12 -> 0.9488888889
B26: TRS | C26: = (Disponibilité) x (Performance) x (Qualité) | H26: =H23*H24*H25 -> 0.5083333333

Sheet Méthode 2 - Obs continue
B2: METHODE N°2 - Calcul du TRS suite à des observations continues.
B4: Etape 1 | C4: Cliquez sur le bouton à droite pour effacer les données de l'exemple ci-dessous
B5: Etape 2 | C5: Complétez le tableau suivant lors de votre observation continue
B6: Etape 3 | C6: Allez sur l'onglet "Méthode 2 - Calcul TRS"
B7: Etape 4 | C7: Renseignez la cadence de production (case jaune)
B8: Etape 5 | C8: Appuyez sur le bouton "Calculer le TRS"
B9: Etape 6 | C9: Analysez les résultats et dressez un plan d'action pour améliorer le TRS
B11: HEURE | C11: DETAIL DE LA TACHE | D11: NATURE | E11: DUREE | F11: INTERVENANT EXT | G11: QUANTITE PRODUITE | H11: REMARQUE
K13: Liste de choix : NATURE
B14: 09:01:00 | C14: Détail de la tâche | D14: Changement de format | E14: =B16-B14 -> 00:01:00 | F14: Détail des intervenants | H14: Remarques supplémentaires | K14: Production (avec MUDA)
K15: Arrêt programmé
B16: 09:02:00 | D16: Production (avec MUDA) | E16: =B18-B16 -> 00:05:00 | G16: 489 | K16: Panne
K17: Changement de format
B18: 09:07:00 | D18: Non qualité | E18: =B20-B18 -> 00:04:00 | K18: Organisation
K19: Non qualité
B20: 09:11:00 | D20: Changement de format | E20: =B22-B20 -> 00:01:00
K21: Hors liste :
B22: 09:12:00 | D22: Changement de format | E22: =B24-B22 -> 00:01:00 | K22: Ralentissement / Micro-arrêt
L23: (Va être determiné par soustraction)
B24: 09:13:00 | D24: Production (avec MUDA) | E24: =B26-B24 -> 00:08:00 | G24: 630
B26: 09:21:00 | D26: Non qualité | E26: =B28-B26 -> 00:04:00
B28: 09:25:00 | D28: Changement de format | E28: =B30-B28 -> 00:01:00
B30: 09:26:00 | D30: Changement de format | E30: =B32-B30 -> 00:01:00
B32: 09:27:00 | D32: Production (avec MUDA) | E32: =B34-B32 -> 00:03:00 | G32: 307
B34: 09:30:00 | D34: Non qualité | E34: =B36-B34 -> 00:03:00
B36: 09:33:00 | D36: Changement de format | E36: =B38-B36 -> 00:01:00
B38: 09:34:00 | D38: Changement de format | E38: =B40-B38 -> 00:01:00
B40: 09:35:00 | D40: Arrêt programmé | E40: =B42-B40 -> 00:16:00
B42: 09:51:00 | D42: Production (avec MUDA) | E42: =B44-B42 -> 00:04:00 | G42: 366
B44: 09:55:00 | D44: Non qualité | E44: =B46-B44 -> 00:04:00
B46: 09:59:00 | D46: Changement de format | E46: =B48-B46 -> 00:00:00
B48: 09:59:00 | D48: Changement de format | E48: =B50-B48 -> 00:01:00
B50: 10:00:00 | D50: Production (avec MUDA) | E50: =B52-B50 -> 00:05:00 | G50: 374
B52: 10:05:00 | D52: Non qualité | E52: =B54-B52 -> 00:03:00
B54: 10:08:00 | D54: Changement de format | E54: =B56-B54 -> 00:00:00
B56: 10:08:00 | D56: Changement de format | E56: =B58-B56 -> 00:01:00
B58: 10:09:00 | D58: Production (avec MUDA) | E58: =B60-B58 -> 00:05:00 | G58: 398
B60: 10:14:00 | D60: Non qualité | E60: =B62-B60 -> 00:02:00
B62: 10:16:00 | D62: Changement de format | E62: =B64-B62 -> 00:01:00
B64: 10:17:00 | D64: Organisation | E64: =B66-B64 -> 00:01:00
B66: 10:18:00 | D66: Changement de format | E66: =B68-B66 -> 00:01:00
B68: 10:19:00 | D68: Panne | E68: =B70-B68 -> 00:00:00
B70: 10:19:00 | D70: Production (avec MUDA) | E70: =B72-B70 -> 00:01:00 | G70: 0
B72: 10:20:00 | D72: Non qualité | E72: =B74-B72 -> 00:01:00
B74: 10:21:00 | D74: Production (avec MUDA) | E74: =B76-B74 -> 00:03:00 | G74: 377
B76: 10:24:00 | D76: Non qualité | E76: =B78-B76 -> 00:02:00
B78: 10:26:00 | D78: Changement de format | E78: =B80-B78 -> 00:01:00
B80: 10:27:00 | D80: Changement de format | E80: =B82-B80 -> 00:00:00
B82: 10:27:00 | D82: Production (avec MUDA) | E82: =B84-B82 -> 00:05:00 | G82: 625
B84: 10:32:00 | D84: Non qualité | E84: =B86-B84 -> 00:07:00
B86: 10:39:00 | D86: Changement de format | E86: =B88-B86 -> 00:00:00
B88: 10:39:00 | D88: Changement de format | E88: =B90-B88 -> 00:01:00
B90: 10:40:00 | D90: Production (avec MUDA) | E90: =B92-B90 -> 00:04:00 | G90: 564
B92: 10:44:00 | D92: Non qualité | E92: =B94-B92 -> 00:03:00
B94: 10:47:00 | D94: Changement de format | E94: =B96-B94 -> 00:01:00
B96: 10:48:00 | D96: Changement de format | E96: =B98-B96 -> 00:00:00
B98: 10:48:00 | D98: Production (avec MUDA) | E98: =B100-B98 -> 00:05:00 | G98: 546
B100: 10:53:00 | D100: Non qualité | E100: =B102-B100 -> 00:05:00
B102: 10:58:00 | D102: Changement de format | E102: =B104-B102 -> 00:00:00
B104: 10:58:00 | D104: Changement de format | E104: =B106-B104 -> 00:01:00
B106: 10:59:00 | D106: Production (avec MUDA) | E106: =B108-B106 -> 00:05:00 | G106: 618
B108: 11:04:00 | D108: Non qualité | E108: =B110-B108 -> 00:04:00
B110: 11:08:00 | D110: Changement de format | E110: =B112-B110 -> 00:01:00
B112: 11:09:00 | D112: Changement de format | E112: =B114-B112 -> 00:01:00
B114: 11:10:00 | D114: Production (avec MUDA) | E114: =B116-B114 -> 00:06:00 | G114: 614
B116: 11:16:00 | D116: Non qualité | E116: =B118-B116 -> 00:04:00
B118: 11:20:00 | D118: Changement de format | E118: =B120-B118 -> 00:01:00
B120: 11:21:00 | D120: Changement de format | E120: =B122-B120 -> 00:00:00
B122: 11:21:00 | D122: Production (avec MUDA) | E122: =B124-B122 -> 00:04:00 | G122: 424
B124: 11:25:00 | D124: Non qualité | E124: =B126-B124 -> 00:03:00
B126: 11:28:00 | D126: Changement de format | E126: =B128-B126 -> 00:00:00
B128: 11:28:00 | D128: Organisation | E128: =B130-B128 -> 00:02:00
B130: 11:30:00 | D130: Changement de format | E130: =B132-B130 -> 00:03:00
B132: 11:33:00 | D132: Arrêt programmé | E132: =B134-B132 -> 00:15:00
B134: 11:48:00 | D134: Production (avec MUDA) | E134: =B136-B134 -> 00:06:00 | G134: 551
B136: 11:54:00 | D136: Non qualité | E136: =B138-B136 -> 00:03:00
B138: 11:57:00 | D138: Changement de format | E138: =B140-B138 -> 00:01:00
B140: 11:58:00 | D140: Changement de format | E140: =B142-B140 -> 00:00:00
B142: 11:58:00 | D142: Production (avec MUDA) | E142: =B144-B142 -> 00:04:00 | G142: 486
B144: 12:02:00 | D144: Non qualité | E144: =B146-B144 -> 00:05:00
B146: 12:07:00 | D146: Organisation | E146: =B148-B146 -> 00:01:00
B148: 12:08:00 | D148: Non qualité | E148: =B150-B148 -> 00:02:00
B150: 12:10:00 | D150: Changement de format | E150: =B152-B150 -> 00:00:00
B152: 12:10:00 | D152: Changement de format | E152: =B154-B152 -> 00:01:00
B154: 12:11:00 | D154: Production (avec MUDA) | E154: =B156-B154 -> 00:05:00 | G154: 618
B156: 12:16:00 | D156: Non qualité | E156: =B158-B156 -> 00:06:00
B158: 12:22:00 | D158: Changement de format | E158: =B160-B158 -> 00:01:00
B160: 12:23:00 | D160: Organisation | E160: =B162-B160 -> 00:01:00
B162: 12:24:00 | D162: Changement de format | E162: =B164-B162 -> 00:02:00
B164: 12:26:00 | D164: Changement de format | E164: =B166-B164 -> 00:00:00
B166: 12:26:00 | D166: Panne | E166: =B168-B166 -> 00:01:00
B168: 12:27:00 | D168: Production (avec MUDA) | E168: =B170-B168 -> 00:06:00 | G168: 525
B170: 12:33:00 | D170: Non qualité | E170: =B172-B170 -> 00:04:00
B172: 12:37:00 | D172: Changement de format | E172: =B174-B172 -> 00:01:00
B174: 12:38:00 | D174: Organisation | E174: =B176-B174 -> 00:01:00
B176: 12:39:00 | D176: Changement de format | E176: =B178-B176 -> 00:01:00
B178: 12:40:00 | D178: Changement de format | E178: =B180-B178 -> 00:00:00
B180: 12:40:00 | D180: Production (avec MUDA) | E180: =B182-B180 -> 00:06:00 | G180: 676
B182: 12:46:00 | D182: Non qualité | E182: =B184-B182 -> 00:06:00
B184: 12:52:00 | D184: Organisation | E184: =B186-B184 -> 00:01:00
B186: 12:53:00 | D186: Panne | E186: =B188-B186 -> 00:02:00
B188: 12:55:00 | D188: Organisation | E188: =B190-B188 -> 00:03:00
B190: 12:58:00 | D190: Organisation | E190: =B192-B190 -> 00:02:00
B192: 13:00:00 | D192: Organisation | E192: =B194-B192 -> 00:02:00
B194: 13:02:00 | D194: Organisation | E194: =B196-B194 -> 00:01:00
B196: 13:03:00 | D196: Changement de format | E196: =B198-B196 -> 00:01:00
B198: 13:04:00 | D198: Changement de format | E198: =B200-B198 -> 00:00:00
B200: 13:04:00 | D200: Production (avec MUDA) | E200: =B202-B200 -> 00:03:00 | G200: 312
B202: 13:07:00 | D202: Non qualité | E202: =B204-B202 -> 00:04:00
B204: 13:11:00 | D204: Changement de format | E204: =B206-B204 -> 00:02:00
B206: 13:13:00 | D206: Production (avec MUDA) | E206: =B208-B206 -> 00:03:00 | G206: 371
B208: 13:16:00 | D208: Non qualité | E208: =B210-B208 -> 00:00:00
B210: 13:16:00 | D210: Organisation | E210: =B212-B210 -> 00:01:00
B212: 13:17:00 | D212: Non qualité | E212: =B214-B212 -> 00:03:00
B214: 13:20:00 | D214: Changement de format | E214: =B216-B214 -> 00:01:00
B216: 13:21:00 | D216: Production (avec MUDA) | E216: =B218-B216 -> 00:05:00 | G216: 377
B218: 13:26:00 | D218: Non qualité | E218: =B220-B218 -> 00:03:00
B220: 13:29:00 | D220: Organisation | E220: =B222-B220 -> 00:01:00
B222: 13:30:00 | D222: Changement de format | E222: =B224-B222 -> 00:02:00
B224: 13:32:00 | D224: Production (avec MUDA) | E224: =B226-B224 -> 00:10:00 | G224: 859
B226: 13:42:00 | D226: Non qualité | E226: =B228-B226 -> 00:05:00
B228: 13:47:00 | D228: Changement de format | E228: =B230-B228 -> 00:00:00
B230: 13:47:00 | D230: Changement de format | E230: =B232-B230 -> 00:01:00
B232: 13:48:00 | D232: Production (avec MUDA) | E232: =B234-B232 -> 00:04:00 | G232: 0
B234: 13:52:00 | D234: Panne | E234: =B236-B234 -> 00:03:00
B236: 13:55:00 | D236: Production (avec MUDA) | E236: =B238-B236 -> 00:04:00 | G236: 656
B238: 13:59:00 | D238: Non qualité | E238: =B240-B238 -> 00:06:00
B240: 14:05:00 | D240: Changement de format | E240: =B242-B240 -> 00:01:00
B242: 14:06:00 | D242: Organisation | E242: =B244-B242 -> 00:02:00
B244: 14:08:00 | D244: Changement de format | E244: =B246-B244 -> 00:01:00
B246: 14:09:00 | D246: Production (avec MUDA) | E246: =B248-B246 -> 00:05:00 | G246: 472
B248: 14:14:00 | D248: Non qualité | E248: =B250-B248 -> 00:07:00
B250: 14:21:00 | D250: Changement de format | E250: =B252-B250 -> 00:01:00
B252: 14:22:00 | D252: Production (avec MUDA) | E252: =B254-B252 -> 00:05:00 | G252: 544
B254: 14:27:00 | D254: Non qualité | E254: =B256-B254 -> 00:04:00
B256: 14:31:00 | D256: Changement de format | E256: =B258-B256 -> 00:01:00
B258: 14:32:00 | D258: Production (avec MUDA) | E258: =B260-B258 -> 00:04:00 | G258: 446
B260: 14:36:00 | D260: Non qualité | E260: =B262-B260 -> 00:05:00
B262: 14:41:00 | D262: Changement de format | E262: =B264-B262 -> 00:01:00
B264: 14:42:00 | D264: Production (avec MUDA) | E264: =B266-B264 -> 00:04:00 | G264: 427
B266: 14:46:00 | D266: Non qualité | E266: =B268-B266 -> 00:05:00
B268: 14:51:00 | D268: Changement de format | E268: =B270-B268 -> 00:01:00
B270: 14:52:00 | D270: Production (avec MUDA) | E270: =B272-B270 -> 00:02:00 | G270: 0
B272: 14:54:00 | D272: Organisation | E272: =B274-B272 -> 00:02:00
B274: 14:56:00 | D274: Production (avec MUDA) | E274: =B276-B274 -> 00:04:00 | G274: 434
B276: 15:00:00 | D276: Non qualité | E276: =B278-B276 -> 00:06:00
B278: 15:06:00 | D278: Organisation | E278: =B280-B278 -> 00:01:00
B280: 15:07:00 | D280: Changement de format | E280: =B282-B280 -> 00:00:00
B282: 15:07:00 | D282: Production (avec MUDA) | E282: =B284-B282 -> 00:03:00 | G282: 342
B284: 15:10:00 | D284: Non qualité | E284: =B286-B284 -> 00:03:00
B286: 15:13:00 | D286: Changement de format | E286: =B288-B286 -> 00:01:00
B288: 15:14:00 | D288: Production (avec MUDA) | E288: =B290-B288 -> 00:04:00 | G288: 473
B290: 15:18:00 | D290: Non qualité | E290: =B292-B290 -> 00:05:00
B292: 15:23:00 | D292: Changement de format | E292: =B294-B292 -> 00:01:00
B294: 15:24:00 | D294: Production (avec MUDA) | E294: =B296-B294 -> 00:05:00 | G294: 464
B296: 15:29:00 | D296: Non qualité | E296: =B298-B296 -> 00:02:00
B298: 15:31:00 | D298: Changement de format | E298: =B300-B298 -> 00:01:00
B300: 15:32:00 | D300: Production (avec MUDA) | E300: =B302-B300 -> 00:05:00 | G300: 549
B302: 15:37:00 | D302: Non qualité | E302: =B304-B302 -> 00:05:00
B304: 15:42:00 | D304: Arrêt programmé | E304: =B306-B304 -> 00:18:00
B306: 16:00:00 | D306: Changement de format | E306: =B308-B306 -> 00:02:00
B308: 16:02:00 | D308: Production (avec MUDA) | E308: =B310-B308 -> 00:04:00 | G308: 427
B310: 16:06:00 | D310: Non qualité | E310: =B312-B310 -> 00:08:00
B312: 16:14:00 | D312: Organisation | E312: =B314-B312 -> 00:01:00
B314: 16:15:00 | D314: Organisation | E314: =B316-B314 -> 00:03:00
B316: 16:18:00 | D316: Changement de format | E316: =B318-B316 -> 00:01:00
B318: 16:19:00 | D318: Production (avec MUDA) | E318: =B320-B318 -> 00:06:00 | G318: 482
B320: 16:25:00 | D320: Non qualité | E320: =B322-B320 -> 00:04:00
B322: 16:29:00 | D322: Changement de format | E322: =B324-B322 -> 00:01:00
B324: 16:30:00 | D324: Production (avec MUDA) | E324: =B326-B324 -> 00:02:00 | G324: 0
B326: 16:32:00 | D326: Panne | E326: =B328-B326 -> 00:01:00
B328: 16:33:00 | D328: Organisation | E328: =B330-B328 -> 00:01:00
B330: 16:34:00 | D330: Production (avec MUDA) | E330: =B332-B330 -> 00:02:00 | G330: 485
B332: 16:36:00 | D332: Non qualité | E332: =B334-B332 -> 00:04:00
B334: 16:40:00 | D334: Changement de format | E334: =B336-B334 -> 00:01:00
B336: 16:41:00 | D336: Production (avec MUDA) | E336: =B338-B336 -> 00:04:00 | G336: 462
B338: 16:45:00 | D338: Organisation | E338: =B340-B338 -> 00:01:00
B340: 16:46:00 | D340: Non qualité | E340: =B342-B340 -> 00:06:00
B342: 16:52:00 | D342: Changement de format | E342: =B344-B342 -> 00:01:00
B344: 16:53:00 | D344: Production (avec MUDA) | E344: =B346-B344 -> 00:05:00 | G344: 488
B346: 16:58:00 | D346: Non qualité | E346: =B348-B346 -> 00:03:00
B348: 17:01:00
E350: =B352-B350 -> 00:00:00
E352: =B354-B352 -> 00:00:00
E354: =B356-B354 -> 00:00:00
E356: =B358-B356 -> 00:00:00
E358: =B360-B358 -> 00:00:00
E360: =B362-B360 -> 00:00:00
E362: =B364-B362 -> 00:00:00
E364: =B366-B364 -> 00:00:00
E366: =B368-B366 -> 00:00:00
E368: =B370-B368 -> 00:00:00
E370: =B372-B370 -> 00:00:00
E372: =B374-B372 -> 00:00:00
E374: =B376-B374 -> 00:00:00
E376: =B378-B376 -> 00:00:00
E378: =B380-B378 -> 00:00:00
E380: =B382-B380 -> 00:00:00
E382: =B384-B382 -> 00:00:00
E384: =B386-B384 -> 00:00:00
... 10 more rows

Sheet Méthode 2 - Calcul TRS
B2: METHODE N°2 - Calcul du TRS suite à des observations continues.
A6: 1 | B6: Actualiser le tableau croisé dynamique
B8: Somme de DUREE | E8: ! Ne pas modifier les filtres
B9: NATURE | C9: Total
B10: Production (avec MUDA) | C10: 03:03:00
B11: Changement de format | C11: 00:50:00
B12: Non qualité | C12: 02:43:00
B13: Arrêt programmé | C13: 00:49:00
B14: Organisation | C14: 00:28:00
B15: Panne | C15: 00:07:00
B16: Total général | C16: 08:00:00
A18: 2 | B18: Renseigner la cadence de production
B20: Temps de production | C20: =C21/C22 -> 152.15
B21: Quantité d'articles produits | C21: ='Méthode 2 - Obs continue'!G404 -> 18258
B22: Cadence de production (/min) | C22: 120 | E22: ! Quantité par minute
A24: 3 | B24: Temps d'ouverture
C26: (min) | D26: %
B28: Temps d'observation | C28: ='Méthode 2 - Obs continue'!E404:E405*24*60 -> 480 | D28: 1
C29: 0
B30: Temps de production planifié | C30: =C28 -> 480 | D30: =D28 -> 1
A32: 4 | B32: Temps brut de fonctionnement
B34: Perte de disponibilité | C34: =SUM(C35:C38) -> 134 | D34: =C34/$C$30 -> 0.2791666667
B35: Organisation | C35: =VLOOKUP(B35,$B$10:$C$15,2,FALSE)*24*60 -> 28 | D35: =C35/$C$30 -> 0.05833333333
B36: Arrêt programmé | C36: =VLOOKUP(B36,$B$10:$C$15,2,FALSE)*24*60 -> 49 | D36: 0.1020833333
B37: Panne | C37: =VLOOKUP(B37,$B$10:$C$15,2,FALSE)*24*60 -> 7 | D37: 0.01458333333
B38: Changement de format | C38: =VLOOKUP(B38,$B$10:$C$15,2,FALSE)*24*60 -> 50 | D38: 0.1041666667
B40: Temps d'exécution | C40: =C30-C34 -> 346 | D40: =C40/C30 -> 0.7208333333
A42: 5 | B42: Temps net de fonctionnement
B44: Perte de performance | C44: =C45 -> 186.85 | D44: =D45 -> 0.3892708333
B45: Ralentissements / micro-arrêts | C45: =C30-C34-C51-C20 -> 186.85 | D45: =C45/C28 -> 0.3892708333
B47: Temps net | C47: =C40-C44 -> 159.15 | D47: =C47/C30 -> 0.3315625
A49: 6 | B49: Temps utile
B51: Perte de qualité | C51: =C52 -> 7 | D51: =C51/C$28 -> 0.01458333333
B52: Non qualité | C52: =C15*24*60 -> 7 | D52: =C52/C$28 -> 0.01458333333
B54: Temps utile | C54: =C20 -> 152.15 | D54: =C54/C30 -> 0.3169791667
A56: 7 | B56: Passer à l'action !
B58: QUOI | E58: QUI | F58: QUAND | G58: AVANCEMENT
